Cogmind - Beta 15 @@@ ROGUE MODE // 2025.10.13 @ 23:24:58 Player: NQH Result: Destroyed self with Mini Grenade Launcher Performance ------------- Evolutions (1) 500 Regions Visited (2) 400 Robots Destroyed (12) 60 Value Destroyed (229) 229 Prototype IDs (1) 20 Alien Tech Used (0) 0 Bonus (200) 200 TOTAL SCORE: 1409 Bonus ------- Pacifist 200 Cogmind --------- Core Integrity 0/400 Matter 270/300 Energy 100/100 System Corruption 3% Temperature Cool (3) Movement Flying (40) Location -9/Materials Parts ------- > --- POWER (1) -------- (None) > --- PROPULSION (2) --- Improved Flight Unit > --- UTILITY (4) ------ Hacking Suite Hacking Suite Hacking Suite Hacking Suite > --- WEAPON (2) ------- Mini Grenade Launcher > --- INVENTORY (5) ---- Ion Engine Hover Unit Hardened Light Armor Plating Peak State ------------ > --- POWER ------------ (None) > --- PROPULSION ------- Flight Unit Improved Flight Unit > --- UTILITY ---------- Hacking Suite Hacking Suite Hacking Suite Hacking Suite > --- WEAPON ----------- Heavy Assault Rifle Mini Grenade Launcher > --- INVENTORY -------- Ion Engine Hover Unit Hardened Light Armor Plating [Rating: 20] Favorites ----------- Power Ion Engine Engine Ion Engine Propulsion Flight Unit Treads Light Treads Flight Unit Flight Unit Utility Hacking Suite Hackware Hacking Suite Weapon Heavy Assault Rifle Ballistic Gun Heavy Assault Rifle Launcher Mini Grenade Launcher Build | -11 -10 -9 ------- Run | Yrd Mat Mat Slots Evolved 2 | . . 2 Power . | . . . Propulsion . | . . . Utility 2 | . . 2 Weapon . | . . . Parts Attached 16 | 3 . 13 Power 1 | 1 . . Engine 1 | 1 . . Core . | . . . Reactor . | . . . Propulsion 7 | 2 . 5 Treads 2 | 2 . . Leg . | . . . Wheel . | . . . Hover . | . . . Flight 5 | . . 5 Utility 4 | . . 4 Device . | . . . Storage . | . . . Processor . | . . . Hackware 4 | . . 4 Protection . | . . . Artifact . | . . . Weapon 4 | . . 4 Energy Gun . | . . . Energy Cannon . | . . . Ballistic Gun 3 | . . 3 Ballistic Cannon . | . . . Launcher 1 | . . 1 Special Weapon . | . . . Impact Weapon . | . . . Slashing Weapon . | . . . Piercing Weapon . | . . . Special Melee Weapon . | . . . Unidentified Prototypes 1 | . . 1 Parts Lost 7 | . . 7 Power . | . . . Propulsion 4 | . . 4 Utility . | . . . Weapon 3 | . . 3 Highest Loss Streak 4 | . . 4 To Critical Strikes . | . . . Average Backups 2 | . 1 3 Power . | . . 1 Propulsion 1 | . . 1 Utility . | . . . Weapon . | . 1 . Tool/Special . | . . . Unused Backups 2 | . . 2 Power . | . . . Propulsion 1 | . . 1 Utility 1 | . . 1 Weapon . | . . . Tool/Special . | . . . Average Slot Usage (%) 38 | . 21 39 Treads 1 | . 14 . Flight 3 | . . 3 Hackware 18 | . . 20 Ballistic Gun 9 | . . 10 Launcher 4 | . . 5 Peak Build Rating 20 | 3 3 20 Average Rating 7 | 2 1 8 On Entrance 1 | . 3 . Naked Turns 65 | . 21 44 Heaviest Build 5 | 5 5 4 Greatest Support 40 | 40 40 9 Greatest Overweight (x) 1 | . . 1 Average Overweight (x) . | . . . Largest Inventory Capacity 5 | 5 5 5 Average Capacity 5 | 5 5 5 Most Carried 5 | 1 2 5 Average Carried 2 | . 1 3 Final Capacity 5 | 5 5 5 Final Carried 3 | 1 2 3 Class Distribution -------------------- 53% | Hacker-Mutant 46% | Mutant Dominant Class ---------------- Mutant | -10/Materials Hacker-Mutant | -9/Materials Resources | -11 -10 -9 ----------- Run | Yrd Mat Mat Matter Collected 526 | 230 . 296 Remotely . | . . . Salvage Created 288 | . . 288 Parts 31 | . . 31 Haulers Intercepted . | . . . Recyclers Shooed . | . . . Parts Field Recycled . | . . . Retrieved Matter . | . . . Parts Self-Destructed . | . . . Prevented . | . . . Kills | -11 -10 -9 ------- Run | Yrd Mat Mat Combat Hostiles Destroyed 8 | . . 8 Guns 6 | . . 6 AOE 2 | . . 2 Classes Destroyed 4 | . . 4 Worker 2 | . . 2 Watcher 2 | . . 2 Swarmer 5 | . . 5 Sentry 3 | . . 3 Best Kill Streak 5 | . . 5 Combat Bots Only 5 | . . 5 Max Kills in Single Turn 1 | . . 1 Gunslinging . | . . . Exploded 1 | . . 1 Melee . | . . . Uniques/NPCs Destroyed . | . . . Combat | -11 -10 -9 -------- Run | Yrd Mat Mat Hostile Shots Fired 90 | . 17 73 Missed 26 | . 5 21 Hits 64 | . 12 52 Projectile 64 | . 12 52 Critical Strikes 3 | . . 3 Damage Taken 931 | . 95 836 Core 493 | . 77 416 Absorbed by Shields . | . . . Core Remaining (%) 84 | 100 69 . Volleys Fired 36 | . . 36 Largest 2 | . . 2 Hottest 53 | . . 53 Shots Fired 48 | . . 48 Gun 39 | . . 39 Cannon . | . . . Launcher 9 | . . 9 Special . | . . . Kinetic 39 | . . 39 Thermal . | . . . Explosive 9 | . . 9 Electromagnetic . | . . . Robot Hit Streak 8 | . . 8 Robot Miss Streak 3 | . . 3 Penetration Max . | . . . Secondary Targets . | . . . Shots Hit Robots 35 | . . 35 Core Hits 18 | . . 18 Critical Kills . | . . . Critical Parts Destroyed . | . . . Critical Strikes . | . . . Melee Attacks . | . . . Impact . | . . . Slashing . | . . . Piercing . | . . . Sneak Attacks . | . . . Combat Hostiles . | . . . Follow-up Attacks . | . . . Damage Inflicted 596 | . . 596 Guns 374 | . . 374 Cannons . | . . . Explosions 163 | . . 163 Melee . | . . . Ramming 59 | . . 59 Kinetic 374 | . . 374 Thermal . | . . . Explosive 163 | . . 163 Electromagnetic . | . . . Impact . | . . . Slashing . | . . . Piercing . | . . . Highest Corruption 3 | . . 3 Average Corruption 3 | . . 3 Corruption Purged . | . . . Corruption Blocked . | . . . Effects 5 | . . 5 Matter Fused 1 | . . 1 Data Loss (minor) 2 | . . 2 Data Loss (major) 1 | . . 1 Misfires 1 | . . 1 Overload Shots . | . . . Overflow Damage . | . . . Projectiles . | . . . Explosions . | . . . Melee . | . . . Knockbacks . | . . . Impact . | . . . Kinetic . | . . . Secondary . | . . . Self-Inflicted Damage 204 | . . 204 Shots 6 | . . 6 Rammed 17 | . . 17 Targets Rammed 17 | . . 17 Kicked . | . . . Crushed . | . . . Highest Temperature 5 | . . 5 Average Temperature 3 | . . 3 Received Heat Transfer 171 | . . 171 Siege Activations . | . . . Martial Activations . | . . . Shielding Activations . | . . . Robots Disrupted . | . . . Combat Hostiles . | . . . Robots Corrupted . | . . . Combat Hostiles . | . . . Parts Fried . | . . . Impact Corruptions . | . . . Robots Melted . | . . . Combat Hostiles . | . . . Parts Melted . | . . . Heat Transferred . | . . . Parts Sabotaged . | . . . Parts Stolen . | . . . Parts Stripped . | . . . Power Chain Reactions . | . . . Alert | -11 -10 -9 ------- Run | Yrd Mat Mat Maximum Alert Level . | . . . Low Security (%) 100 | 100 100 100 Level 1 . | . . . Level 2 . | . . . Level 3 . | . . . Level 4 . | . . . Level 5 . | . . . High Security . | . . . Max Security . | . . . Peak Influence 132 | . 30 132 Initial 12 | . . 12 Average 59 | . 4 72 Influence Increases 383 | . 30 353 Destroy 0b10 Robot/C 160 | . . 160 Destroy 0b10 Robot/NC 20 | . . 20 Destroy Leader 44 | . . 44 Successful Hack 10 | . . 10 Disable Machine 15 | . . 15 Destroy Structure 74 | . . 74 Lose Combat Pursuer 60 | . 30 30 Influence Decreases 268 | . . 268 Entered New Map 18 | . . 18 Time Decay 180 | . . 180 Lost Part 70 | . . 70 Squads Dispatched 1 | . . 1 Investigation . | . . . Extermination . | . . . Reinforcement 1 | . . 1 Assault . | . . . Garrison . | . . . Intercept . | . . . Searches Triggered . | . . . Construction Impeded . | . . . Haulers Reinforced . | . . . Active Scanning Responses . | . . . Cargo Convoy Interrupts . | . . . Stealth | -11 -10 -9 --------- Run | Yrd Mat Mat Distress Signals 2 | . . 2 Communications Jammed . | . . . Distress Signals . | . . . Times Spotted 27 | . 4 23 Peak Tracking Total 6 | . 3 6 Tactical Retreats 2 | . 1 1 Traps | -11 -10 -9 ------- Run | Yrd Mat Mat Traps Triggered . | . . . Indirectly . | . . . Trap Hack Attempts . | . . . Triggered . | . . . Disarmed . | . . . Reprogrammed . | . . . Reused . | . . . Traps Extracted . | . . . Installed . | . . . Triggered . | . . . Machines | -11 -10 -9 ---------- Run | Yrd Mat Mat Machines Disabled 1 | . . 1 Max in Single Turn 1 | . . 1 Machines Repaired . | . . . Machines Dismantled . | . . . Machines Sabotaged . | . . . Overloaded Fab Kills . | . . . Hacking | -11 -10 -9 --------- Run | Yrd Mat Mat Machines Accessed 7 | . . 7 Terminals 6 | . . 6 Fabricators . | . . . Repair Stations . | . . . Recycling Units . | . . . Scanalyzers 1 | . . 1 Garrison Access . | . . . Total Hacks 16 | . . 16 Successful 14 | . . 14 Failed 2 | . . 2 Catastrophic . | . . . Database Lockouts . | . . . Manual 11 | . . 11 Terminals 10 | . . 10 Fabricators . | . . . Repair Stations . | . . . Recycling Units . | . . . Scanalyzers 6 | . . 6 Garrison Access . | . . . Terminal Hacks . | . . . Fabricator Hacks . | . . . Repair Station Hacks . | . . . Recycling Unit Hacks . | . . . Scanalyzer 6 | . . 6 Insert Component 3 | . . 3 Analyze 3 | . . 3 Garrison Access Hacks . | . . . Unauthorized Hacks 7 | . . 7 Terminals 7 | . . 7 Botnet 1 | . . 1 Skim 6 | . . 6 Fabricators . | . . . Repair Stations . | . . . Recycling Units . | . . . Scanalyzers . | . . . Garrison Access . | . . . Data Cores Recovered . | . . . Used . | . . . Hacking Detections 5 | . . 5 Full Trace Events 1 | . . 1 Feedback Events . | . . . Feedback Blocked . | . . . Robot Schematics Acquired . | . . . Robots Built . | . . . Authchips . | . . . Time . | . . . Total Robot Build Rating . | . . . Part Schematics Acquired 3 | . . 3 Parts Built . | . . . Authchips . | . . . Time . | . . . Total Part Build Rating . | . . . Parts Repaired . | . . . Time . | . . . Parts Recycled . | . . . Recycled Matter . | . . . Retrieved Matter . | . . . Retrieved Components . | . . . Parts Scanalyzed 3 | . . 3 Part Schematics Acquired 3 | . . 3 Parts Damaged . | . . . Bothacking | -11 -10 -9 ------------ Run | Yrd Mat Mat Used RIF Installer . | . . . Robots Hacked . | . . . Non-combat . | . . . Combat . | . . . Robot Hacks Applied . | . . . Relay Couplers Released . | . . . Fabnet Peak Effective % . | . . . Robots Rewired . | . . . Allies Hacked . | . . . Hacks Repelled . | . . . Allies | -11 -10 -9 -------- Run | Yrd Mat Mat Total Allies . | . . . Largest Group . | . . . Highest-Rated Group . | . . . Highest-Rated Ally . | . . . Total Orders . | . . . Ally Attacks . | . . . Total Damage . | . . . Kills . | . . . Allies Corrupted . | . . . Allies Melted . | . . . Intel | -11 -10 -9 ------- Run | Yrd Mat Mat Active Infowar (turns) . | . . . Robot Analysis Total . | . . . Derelict Logs Recovered . | . . . Drone Launches . | . . . Drone Recoveries . | . . . Exploration | -11 -10 -9 ------------- Run | Yrd Mat Mat Turns Passed 467 | 49 39 379 Spaces Moved 505 | 41 52 412 Core 320 | 19 41 260 Treads 33 | 22 11 . Legs . | . . . Wheels . | . . . Hover . | . . . Flight 152 | . . 152 Fastest Speed 37 | 50 50 37 Average Speed 66 | 109 73 61 Slowest Speed 160 | 160 160 100 Overloaded Moves . | . . . Propulsion Burnouts . | . . . Robots Hopped 5 | . . 5 Potential Cave-ins . | . . . Cave-ins Triggered . | . . . Exploration Rate (%) 17 | 3 22 28 Regions Visited 2 Branch Regions . Pre-discovered Areas . | . . . Known Exits Taken . | . . . Unknown Exits Taken 2 | 1 1 . Scrap Searched . | . . . Spaces Dug . | . . . Terrain Destroyed 97 | . . 97 Melee . | . . . Projectile . | . . . AOE 97 | . . 97 Terrain Rammed . | . . . Walls Destroyed . | . . . Machines Disabled . | . . . Actions | -11 -10 -9 --------- Run | Yrd Mat Mat Total 584 | 44 52 488 Wait 2 | . . 2 Move 493 | 40 51 402 Hop 5 | . . 5 Pick Up 8 | 1 1 6 Fast Attach 12 | 3 . 9 Attach 7 | . . 7 Detach 3 | . . 3 Swap . | . . . Drop 1 | . . 1 Fire 36 | . . 36 Melee . | . . . Ram 17 | . . 17 Kick . | . . . Crush . | . . . Escape Stasis . | . . . Rewire . | . . . Trap . | . . . Miscellaneous . | . . . Route ------- -11/Scrapyard -10/Materials -9/Materials (discovered 2 exits: [*Mat] / [*Min]) History --------- Turn | Location | Event 3 | -11/Scrapyard | Discovered new exit (range 16) 50 | -11/Scrapyard | Entered Materials 68 | -10/Materials | Released all parts (3) 83 | -10/Materials | Discovered new exit (range 13) 89 | -10/Materials | Entered another Materials area 89 | -9/Materials | Evolved 2 slots: Utility x2 89 | -9/Materials | Discovered new exit (range 8) 205 | -9/Materials | Core integrity fell below 50% 229 | -9/Materials | Lost 4 parts (2n2w) 423 | -9/Materials | Discovered new exit (range 16) 451 | -9/Materials | Core integrity fell below 20% 468 | -9/Materials | Destroyed self with Mini Grenade Launcher Last Messages --------------- 00456_ Connecting with Terminal... >>Trojan(Skim) Trojan loaded successfully. Testing... Terminal linked with 4 systems. Skimming routine engaged. Thanks from A0-MCA. >>Trojan(Botnet) Trojan loaded successfully. Testing... Terminal linked with 0 systems. Awaiting botnet instructions. 00457_ Acquired 38 matter. 00459_ K-01 Serf collects debris. 00460_ Acquired 16 matter. 00462_ K-01 Serf collects debris. 00464_ Hvy. Assault Rifle destroyed. 00467_ System corrupted: FCS attempts to trigger Mni. Grenade Launcher. 00467_ System corrupted: Mni. Grenade Launcher misfires. Map ----- +----------------------------------------------------+ | ??????????????????????????????????????????????# | | ??????????????????????????????????????????????# | | ????????????????????????????###+###???????????# | | ????????????????????????????# #???????????# | | ???????????????????????????## #???????????# | | ???????????????????????????? " #???????????# | | ????????????????????????????# #???????????# | | ????????????????????????????# ????????????# | | ?????????????????????????????# #????????????# | | ?????????????????????????????# #????????????# | | ?????????????????????????????# ############## | | ?????????????????????????????# = | | ????????????????????????????## ################ | | ???????????? ##+############ #??????????# | | ??????????? T #??????????#"" | | ??????????? "" #??????????#"T | | ??????????? #??????????#"" | | ????????????????#####+### ### #??????????# | | ???????????????????????## #?#######??????????# | | ???????????????????????# Y###????????????????##### | | ???????????????????????# ###?????????????????## | | ???????????????????????# #?????????????##### | | ??????????????????????## #?????????????#!! # | | ??????????????????????# #?????????????#!! | | ??????????????????????# #?????????????#!! # | | ???????????????????????# @ #?????????????#!! | | ???????????????????????# ####??????#??????# | | ???????????????????????# ######## #??????# | | ?????????????????????### ## T % #???######## | | ?????????????????????# #???# # | | ?????????????????????# = #???# T | | ?????????# ######### [ ! #???# # | | ?????????# ^ o #???# | | ?????????# = """ #???# | | ?????????# [ k """ #???# # | | ?????????# "" ##### """ ############ | | ?????????? "Y ?????#### ## ## #???# | | ??????????? "" ?????????############## "" #???# | | ??????????? ?????????????# T # "" #???# | | ?????????? ???????????????# # "T #???# | | ?????????###????????????????# # "" #???# | | ????????????????????????????# # "" #???# | | ????????????????????????????# """ """ # #???# | | ????????????????????????????# """ """ ###+###???# | | ????????????????????????????# """ """ #?# ####?## | | ????????????????????????????# % #?#=# ### | | ????????????????????????????######+###### # | | ????????????????????????????????# % | | ????????????????????????????????# ###### # | | ????????????????????????????????# #????####### | +----------------------------------------------------+ Best States ------------- Heat Dissipation 28 Energy Generation 10 Energy Capacity 250 Matter Stores 300 Matter Capacity 300 Sight Range 16 Terrain Scan Density 10 Evasion (%) 62 Recoil Reduction 2 Offensive Hacking 40 Item Schematics ----------------- Imp. Flight Unit | -9/Materials | Scanalyzed Hacking Suite | -9/Materials | Scanalyzed Hrd. Light Armor Plating | -9/Materials | Scanalyzed Robot Schematics ------------------ None Fabricated ------------ Nothing Repaired ---------- Nothing Alien Tech Used ----------------- None Achievements -------------- None Challenges ------------ None Game ------ Seed SigixJunkTreads Manual? 0 Play Time 00:05:31 Cumulative 31.9 hours Start 2025.10.13 @ 23:20:18 End 2025.10.13 @ 23:24:58 Sessions 1 Manual Loads 0 Difficulty Rogue Special Mode None Game No. 125 Rogue 125 Adventurer 0 Explorer 0 Win Type - Total 0 Types 0/0/0/0/0/0/0/0/0/0 Lore% 11 Gallery% 31 Achievement% 28 Wizard Run 0 Options --------- Layout 1 ASCII 0 Keyboard 1 Movement Vi Keybinds 0 Fullscreen 1 Font 16/SmallcapsGlow Map View 55x38 Zoom Use 0% Tactical HUD 1 Map Filters NONE Filters NONE Steam 1 RUN: f30051c7-7e54-4ed2-8e89-6c3168ffadeb